Workbook

Sheet Таблица 2.2
G1: Таблица 2.2
A3: Показатели по поступлениям и выплатам бюджетного учреждения (подразделения), детализировано
H4: карусель
A5: № п\п | B5: Наименование показателя | C5: Код бюджетной классификации | D5: Очередной финансовый год
D6: I кв. | E6: II кв. | F6: III кв. | G6: IV кв. | H6: Всего
A7: 1. | B7: Остаток средств на начало планируемого года | C7: Х | D7: 0 | H7: =SUM(D7:G7) -> 0
A8: 2. | B8: Поступления, всего: | C8: Х | D8: =SUM(D10:D14) -> 3677981 | E8: =SUM(E10:E14) -> 3417506 | F8: =SUM(F10:F14) -> 2046916 | G8: =SUM(G10:G14) -> 2130294 | H8: =SUM(D8:G8) -> 11272697
A9: в том числе:
A10: 2.1. | B10: Субсидии на выполнении муниципального задания, в том числе: | D10: =D18 -> 3326400 | E10: =E18 -> 3224625 | F10: =F18 -> 1864035 | G10: =G18 -> 1957412 | H10: 10372472
A11: 2.2. | B11: Субсидии на иные цели | D11: =D94 -> 168700 | E11: =E94 -> 0 | F11: 0 | G11: 0 | H11: 168700
A12: 2.3. | B12: Бюджетные инвестиции | H12: 0
A13: 2.4. | B13: Поступления от оказания бюджетным учреждением услуг (выполнение работ), предоставление которых для физических и юридических лиц осуществляется на платной основе | H13: 0
A14: 2.5. | B14: Поступления от иной приносящей доход деятельности, всего: | D14: =D16+D17 -> 182881 | E14: =E16+E17 -> 192881 | F14: =F16+F17 -> 182881 | G14: =G16+G17 -> 172882 | H14: 731525
A15: в том числе:
A16: 2.5.1. | B16: от сдачи имущества в аренду | H16: 0
A17: 2.5.2. | B17: иные поступления | D17: =D64 -> 182881 | E17: =E64 -> 192881 | F17: =F64 -> 182881 | G17: =G64 -> 172882 | H17: 731525
A18: 3. | B18: Выплаты за счет субсидии на финансовое обеспечение выполнения муниципального задания из местного бюджета, всего: | C18: Х | D18: =D20+D31+D50+D53 -> 3326400 | E18: =E20+E31+E50+E53 -> 3224625 | F18: =F20+F31+F50+F53 -> 1864035 | G18: =G20+G31+G50+G53 -> 1957412 | H18: 10372472
A19: в том числе:
A20: 3.1. | B20: Расходы на выплаты персоналу в целях обеспечения выполнения функций государственными (муниципальными) органами, казенными учреждениями, органами управления государственными внебюджетными фондами, всего | C20: 100 | D20: =SUM(D22:D30) -> 2604000 | E20: =SUM(E22:E30) -> 3189900 | F20: =SUM(F22:F30) -> 1829310 | G20: =SUM(G22:G30) -> 1922687 | H20: 9545897
A21: из них:
A22: 3.1.1. | B22: Заработная плата | C22: 075;0701;69 1 01 07300;111 (211) | D22: 600000 | E22: 650000 | F22: 250000 | G22: =100000+500000 -> 600000 | H22: 2100000
A23: 3.1.1. | B23: Заработная плата | C23: 075;0701;69 1 01 07300;111 (266) | D23: 10000 | H23: 10000
A24: 3.1.1. | B24: Заработная плата | C24: 075;0701;69 1 01 76700;111 (211) | D24: =1100000+260000 -> 1360000 | E24: 1800000 | F24: =1275000-120000 -> 1155000 | G24: =1000000-123283 -> 876717 | H24: =SUM(D24:G24) -> 5191717
A25: 3.1.1. | B25: Заработная плата | C25: 075;0701;69 1 01 76700;111 (266) | D25: 30000 | H25: =SUM(D25:G25) -> 30000
A26: 3.1.1. | B26: Заработная плата | C26: 075;0701;69 1 01 72200;111 (211) | H26: =SUM(D26:G26) -> 0
A27: 3.1.2. | B27: Прочие выплаты | C27: 075;0701;69 1 01 07300;112 (212) | H27: 0
A28: 3.1.3. | B28: Начисления на выплаты по оплате труда | C28: 075;0701;69 1 01 07300;119 (213) | D28: 184220 | E28: 196300 | F28: 75500 | G28: 181200 | H28: =SUM(D28:G28) -> 637220
A29: 3.1.3. | B29: Начисления на выплаты по оплате труда | C29: 075;0701;69 1 01 72200;119 (213) | H29: =SUM(D29:G29) -> 0
A30: 3.1.3. | B30: Начисления на выплаты по оплате труда | C30: 075;0701;69 1 01 76700;119 (213) | D30: 419780 | E30: 543600 | F30: 348810 | G30: =264770 -> 264770 | H30: =SUM(D30:G30) -> 1576960
A31: 3.2. | B31: Закупка товаров, работ и услуг для обеспечения государственных (муниципальных) нужд, всего | C31: 200 | D31: =SUM(D33:D49) -> 509950 | E31: =SUM(E33:E49) -> 34725 | F31: 34725 | G31: 34725 | H31: =SUM(D31:G31) -> 614125 | J31: =H31+H71+H117+H120+H121+H130+H131+H123+'Таблица 2.2'!H134 -> 1345650
A32: из них:
A33: 3.2.1. | B33: Услуги связи | C33: 075;0701;69 1 01 07300;244 (221) | D33: 2500 | E33: 2500 | F33: 2500 | G33: 2500 | H33: 10000
A34: 3.2.2. | B34: Транспортные услуги | C34: 075;0701;69 1 01 07300;244 (222) | H34: 0
A35: 3.2.3. | B35: Коммунальные услуги | C35: 075;0701;69 1 01 07300;247 (223) | D35: =400000-25000 -> 375000 | H35: 375000
A36: 3.2.3. | B36: Коммунальные услуги обл | C36: 075;0701;69 1 01 07300;244 (223) | D36: 25000 | H36: =SUM(D36:G36) -> 25000
A37: 3.2.4. | B37: Арендная плата за пользование имуществом | C37: 075;0701;69 1 01 07300;244 (224) | H37: 0
A38: 3.2.5. | B38: Работы, услуги по содержанию имущества | C38: 075;0701;69 1 01 07300;244 (225) | D38: 5000 | H38: 5000 | J38: =H33+H36+H38+H39+H41+H42+H43+H44+H45+H46+H47+H49 -> 239125
A39: 3.2.6. | B39: Прочие работы, услуги | C39: 075;0701;69 1 01 07300;244 (226) | D39: 5000 | H39: 5000
A40: 3.2.7. | B40: Прочие расходы | C40: 075;0701;69 1 01 07300;244 (290) | H40: 0
A41: 3.2.8. | B41: Увеличение стоимости основных средств | C41: 075;0701;69 1 01 07300;244 (310) | H41: =SUM(D41:G41) -> 0
A42: 3.2.8. | B42: Увеличение стоимости основных средств | C42: 075;0701;69 1 01 76700;244 (310) | D42: 47740 | H42: =SUM(D42:G42) -> 47740
A43: 3.2.9. | B43: Увеличение стоимости материальных запасов | C43: 075;0701;69 1 01 07300;244 (346) | H43: =SUM(D43:G43) -> 0
A44: 3.2.9. | B44: Увеличение стоимости материальных запасов | C44: 075;0701;69 1 01 07300;244 (342) | D44: 17990 | H44: =SUM(D44:G44) -> 17990
A45: 3.2.9. | B45: Увеличение стоимости материальных запасов | C45: 075;0701;69 1 01 07300;244 (341) | H45: =SUM(D45:G45) -> 0
A46: 3.2.9. | B46: Увеличение стоимости материальных запасов | C46: 075;0701;69 1 01 07300;244 (345) | H46: 0
A47: 3.2.9. | B47: Увеличение стоимости материальных запасов | C47: 075;0701;69 10 1 76900;244 (342) | D47: 25000 | E47: =25000+7774-548-1 -> 32225 | F47: =25000+7774-548-1 -> 32225 | G47: =25000+7774-548-1 -> 32225 | H47: 121675
A48: 3.2.9. | B48: Увеличение стоимости материальных запасов | C48: 075;0701;69 10 1 76900;244 (341) | H48: 0
A49: 3.2.9. | B49: Увеличение стоимости материальных запасов | C49: 075;0701;69 10 1 76900;244 (345) | D49: 6720 | H49: 6720
A50: 3.3. | B50: Социальное обеспечение и иные выплаты населению, всего: | C50: 300 | D50: =D52 -> 0 | E50: =E52 -> 0 | F50: =F52 -> 0 | G50: =G52 -> 0 | H50: 0
A51: из них:
A52: 3.3.1. | B52: Пособия по социальной помощи населению | H52: 0
A53: 3.4. | B53: Иные бюджетные ассигнования, всего: | C53: 800 | D53: =SUM(D55:D63) -> 212450 | E53: =SUM(E55:E63) -> 0 | F53: 0 | G53: 0 | H53: 212450
A54: из них:
A55: 3.4.1. | B55: Уплата прочих налогов, сборов | C55: 075;0701;69 1 01 07300;831 (296) | H55: =SUM(D55:G55) -> 0
A56: 3.4.1. | B56: Уплата налога на имущество организаций и земельного налога | C56: 075;0701;69 1 01 07300;851 (291) | D56: 204950 | H56: 204950
A57: 3.4.1. | B57: Уплата налога на имущество организаций и земельного налога | C57: 075;0701;69 1 01 72200;851 (291) | H57: =SUM(D57:G57) -> 0
A58: 3.4.2. | B58: Уплата прочих налогов, сборов | C58: 075;0701;69 1 01 07300;852 (291) | H58: 0
A59: 3.4.3. | B59: Уплата иных платежей | C59: 075;0701;69 1 01 07300;853 (293) | D59: 5000 | H59: 5000
A60: 3.4.3. | B60: Уплата иных платежей | C60: 075;0701;69 1 01 07300;853 (297) | H60: 0
A61: 3.4.3. | B61: Уплата иных платежей | C61: 075;0701;69 1 01 79200;851 (291) | H61: 0
A62: 3.4.4. | B62: Уплата иных платежей | C62: 075;0701;69 1 01 07300;831 (297) | H62: 0
A63: 3.4.5. | B63: Уплата налога на имущество организаций и земельного налога | C63: 075;0701;69 1 01 07300;851 (294) | D63: 2500 | H63: 2500
A64: 4. | B64: Выплаты за счет поступлений от оказания услуг (выполнения работ) на платной основе и от иной приносящей доход деятельности, всего: | C64: Х | D64: =D66+D71+D85 -> 182881 | E64: =E66+E71+E85 -> 192881 | F64: =F66+F71+F85 -> 182881 | G64: =G66+G71+G85 -> 172882 | H64: 731525
A65: в том числе:
A66: 4.1. | B66: Расходы на выплаты персоналу в целях обеспечения выполнения функций государственными (муниципальными) органами, казенными учреждениями, органами управления государственными внебюджетными фондами, всего | C66: 100 | D66: =SUM(D68:D70) -> 0 | E66: =SUM(E68:E70) -> 0 | F66: =SUM(F68:F70) -> 0 | G66: =SUM(G68:G70) -> 0 | H66: =SUM(D66:G66) -> 0
A67: из них:
A68: 4.1.1. | B68: Заработная плата | H68: =SUM(D68:G68) -> 0
A69: 4.1.2. | B69: Прочие выплаты | H69: =SUM(D69:G69) -> 0
A70: 4.1.3. | B70: Начисления на выплаты по оплате труда | H70: =SUM(D70:G70) -> 0
A71: 4.2. | B71: Закупка товаров, работ и услуг для обеспечения государственных (муниципальных) нужд, всего | C71: 200 | D71: =SUM(D73:D84) -> 182881 | E71: =SUM(E73:E84) -> 192881 | F71: 182881 | G71: 172882 | H71: =SUM(D71:G71) -> 731525
A72: из них:
A73: 4.2.1. | B73: Услуги связи | C73: 075;0701;00 0 00 00000 244 (211) | H73: =SUM(D73:G73) -> 0
A74: 4.2.2. | B74: Транспортные услуги | C74: 075;0701;00 0 00 00000 244 (213) | H74: 0
A75: 4.2.3. | B75: Коммунальные услуги | C75: 075;0701;00 0 00 00000 244 (223) | H75: 0
A76: 4.2.4. | B76: Арендная плата за пользование имуществом | C76: 075;0701;00 0 00 00000 244 (224) | H76: 0
A77: 4.2.5. | B77: Работы, услуги по содержанию имущества | C77: 075;0701;00 0 00 00000 244 (225) | H77: 0
A78: 4.2.6. | B78: Прочие работы, услуги | C78: 075;0701;00 0 00 00000 244 (226) | H78: 0
A79: 4.2.7. | B79: Прочие расходы | C79: 075;0701;00 0 00 00000 244 (290) | H79: 0
A80: 4.2.8. | B80: Увеличение стоимости основных средств | C80: 075;0701;00 0 00 00000 244 (310) | H80: 0
A81: 4.2.9. | B81: Увеличение стоимости материальных запасов | C81: 075;0701;00 0 00 00000 244 (341) | H81: 0
A82: 4.2.10. | B82: Увеличение стоимости материальных запасов | C82: 075;0701;00 0 00 00000 244 (342) | D82: 182881 | E82: =182881+10000 -> 192881 | F82: 182881 | G82: =182882-10000 -> 172882 | H82: 731525
A83: 4.2.11. | B83: Увеличение стоимости материальных запасов | C83: 075;0701;00 0 00 00000 244 (344) | H83: 0
A84: 4.2.12. | B84: Увеличение стоимости материальных запасов | C84: 075;0701;00 0 00 00000 244 (346) | H84: 0
A85: 4.3. | B85: Иные бюджетные ассигнования, всего: | C85: 800 | D85: =SUM(D87:D89) -> 0 | E85: =SUM(E87:E89) -> 0 | F85: =SUM(F87:F89) -> 0 | G85: =SUM(G87:G89) -> 0 | H85: =SUM(D85:G85) -> 0
A86: из них:
A87: 4.3.1. | B87: Уплата налога на имущество организаций и земельного налога | H87: =SUM(D87:G87) -> 0
A88: 4.3.2. | B88: Уплата прочих налогов, сборов | H88: =SUM(D88:G88) -> 0
A89: 4.3.3. | B89: Уплата иных платежей | H89: =SUM(D89:G89) -> 0
A90: 5. | B90: Выплаты за счет поступлений на осуществление бюджетных инвестиций, всего | C90: Х | D90: =SUM(D92:D93) -> 0 | E90: =SUM(E92:E93) -> 0 | F90: =SUM(F92:F93) -> 0 | G90: =SUM(G92:G93) -> 0 | H90: =SUM(D90:G90) -> 0
A91: в том числе:
H92: 0
H93: 0
A94: 6. | B94: Выплаты за счет субсидии на иные цели, всего | C94: Х | D94: =SUM(D96:D134) -> 168700 | E94: =SUM(E96:E134) -> 0 | F94: =SUM(F96:F134) -> 0 | G94: =SUM(G96:G134) -> 0 | H94: =SUM(D94:G94) -> 168700
A95: в том числе:
A96: 6.1 | B96: Заработная плата (софинансирование) | C96: 075;0701;37 1 01 S2300;111 (211) | H96: =SUM(D96:G96) -> 0 | I96: 111 | J96: =H96+H98+H108 -> 0
A97: 6.2 | B97: Начисления на выплаты по оплате труда (софинансирование) | C97: 075;0701;37 1 01 S2300;119 (213) | H97: =SUM(D97:G97) -> 0 | I97: 119 | J97: =H116 -> 0
A98: 6.3 | B98: Заработная плата (область) | C98: 075;0701;37 1 01 72300;111 (211) | H98: =SUM(D98:G98) -> 0 | I98: 244 | J98: =H102+H103+H104+H105+H106+H107+H117+H123 -> 168700
A99: 6.4 | B99: Начисления на выплаты по оплате труда (область)) | C99: 075;0701;37 1 01 72300;119 (213) | H99: 0 | I99: 243 | J99: =H130+H131+H134 -> 0
A100: 6.5 | B100: Увеличение стоимости основных средств | C100: 075;0701;69 1 04 79Г43;244 (225) | H100: =SUM(D100:G100) -> 0 | J100: =H123 -> 0
A101: 6.5 | B101: Увеличение стоимости основных средств | C101: 075;0701;69 1 04 79Г43;244 (226) | H101: 0 | J101: =H124 -> 0
A102: 6.5 | B102: Увеличение стоимости основных средств | C102: 075;0701;69 1 04 79Г43;244 (310) | D102: =84350 -> 84350 | H102: 84350 | J102: =H125 -> 0
A103: 6.5 | B103: Увеличение стоимости основных средств | C103: 075;0701;69 1 04 79Г43;244 (346) | H103: 0
A104: 6.6 | C104: 075;0701;69 1 04 15800;244 (310) | D104: =84350 -> 84350 | H104: 84350
A105: 6.6 | C105: 075;0701;69 1 04 15800;244 (226) | H105: 0
A106: 6.7 | B106: Уплата налога на имущество организаций и земельного налога (обл. кредиторка) | C106: 075;0701;69 1 04 15800;244 (225) | H106: =SUM(D106:G106) -> 0
A107: 6.8 | B107: Начисления на выплаты по оплате труда (область) | C107: 075;0701;69 1 04 15800;244 (346) | H107: 0
A108: 6.9 | B108: Начисления на выплаты по оплате труда (кредиторка) | C108: 075;0701;69 1 06 7671Д;111 (211) | H108: 0
A109: 6.10 | B109: Коммунальные услуги (кредиторка) | C109: 075;0701;69 1 06 7671Д;119 (213) | H109: 0
A110: 6.11 | B110: Уплата иных платежей (кредиторка) | C110: 075;0701;69 1 03 72400;853 (293) | H110: 0
A111: 6.12 | B111: Работы, услуги по содержанию имущества (кредиторка) | C111: 075;0701;69 1 03 72400;244 (225) | H111: 0
A112: 6.13 | B112: Прочие работы, услуги (кредиторка) | C112: 075;0701;69 1 03 72400;244 (226) | H112: 0
A113: 6.14 | B113: Заработная плата (область) | C113: 075;0701;69 1 07 78А00;111 211 | H113: 0
A114: 6.15 | B114: Начисления на выплаты по оплате труда (область) | C114: 075;0701;69 1 07 78А00;119 213 | H114: 0
C115: 075;0701;69 1 01 07300;244 (346) | H115: 0
A116: 6.16 | B116: Начисления на выплаты по оплате труда (местн) | C116: 075;0701;69 1 03 073Г0;119 (213) | H116: 0
A117: 6.17 | B117: Услуги связи (кредиторка) | C117: 075;0701;69 1 03 073Г0;244 (221) | H117: =SUM(D117:G117) -> 0
A118: 6.18 | B118: Коммунальные услуги (кредиторка) | C118: 075;0701;69 1 03 073Г0;244 (223) | H118: 0
A119: 6.19 | B119: Уплата налога на имущество организаций и земельного налога (кредиторка) | C119: 075;0701;69 1 03 073Г0;851 (291) | H119: 0
A120: 6.20 | B120: Коммунальные услуги (кредиторка) | C120: 075;0701;69 1 03 073Г0;244 (223) | H120: 0
A121: 6.21 | B121: Работы, услуги по содержанию имущества (кредиторка) | C121: 075;0701;69 1 03 073Г0;244 (225) | H121: 0
A122: 6.22 | B122: Прочие работы, услуги(кредиторка) | C122: 075;0701;69 1 03 073Г0;244 (226) | H122: 0
A123: 6.23 | B123: Увеличение стоимости материальных запасов (кредиторка) | C123: 075;0701;69 1 03 073Г0;244 (342) | H123: 0
A124: 6.24 | B124: Увеличение стоимости материальных запасов (кредиторка) | C124: 075;0701;69 1 03 073Г0;244 (291) | H124: 0
A125: 6.25 | B125: Уплата иных платежей (кредиторка) | C125: 075;0701;69 1 01 073Г0;853 (297) | H125: 0
A126: 6.26 | B126: Утепление кровли и фасадов зданий, замена оконных и дверных блоков на пластиковые | C126: 075;0701;76 2 01 10180;244 (226) | H126: 0
A127: 6.27 | B127: Начисления на выплаты по оплате труда обл.(кредиторка 2018г.) | C127: 075;0701;69 1 03 72200;119 (213) | H127: 0
A128: 6.28 | B128: Коммунальные услуги обл.(кредиторка 2018г.) | C128: 075;0701;69 1 03 72200;244 (223) | H128: 0
A129: 6.29 | B129: Уплата иных платежей(кредиторка) | C129: 075;0701;69 1 03 073Г0;853 (293) | H129: 0
A130: 6.30 | B130: Проведение капитального и текущего ремонтов МБДОУ детский сад "Малыш"(областной) | C130: 075;0701;69 1 05 72Г00;243 225 | H130: 0
A131: 6.31 | B131: Проведение капитального и текущего ремонтов МБДОУ детский сад "Малыш"(софин.) | C131: 075;0701;69 1 05 S2Г00;243 225 | H131: 0
A132: 6.30 | B132: Проведение капитального и текущего ремонтов МБДОУ детский сад "Малыш"(областной) | C132: 075;0701;69 1 05 72Г00;244 344 | H132: 0
A133: 6.31 | B133: Проведение капитального и текущего ремонтов МБДОУ детский сад "Малыш"(софин.) | C133: 075;0701;69 1 05 S2Г00;244 344 | H133: =SUM(D133:G133) -> 0
A134: 6.32 | B134: Оказание услуг по осуществлению строительного контроля за выполнением работ по замене деревянных оконных дверных блоков на энергосберегающие,за выполнением работ по капитальному ремонту крыши МБДОУ детский сад "Малыш"(местн.) | C134: 075;0701;69 1 05 24040;243 226 | H134: 0
A135: 7. | B135: Остаток средств на конец планируемого года | C135: Х | D135: =SUM(D137:D139) -> 0 | E135: =SUM(E137:E139) -> 0 | F135: =SUM(F137:F139) -> 0 | G135: =SUM(G137:G139) -> 0 | H135: 0
A136: в том числе:
A137: 7.1. | B137: остаток субсидии на выполнение муниципального задания | H137: 0
A138: 7.2. | B138: остаток целевой субсидии | H138: 0
A139: 7.3. | B139: остаток средств от оказания услуг (выполнения работ) на платной основе и от иной приносящей доход деятельности | H139: 0

Sheet стр.1_4
DW2: Утверждаю
DW3: Заведующий МБДОУ ДС "Карусель"
DW4: (наименование должности уполномоченного лица)
DW6: (наименование органа - учредителя (учреждения)
EL7: А. А. Елизарова
DW8: (подпись) | EL8: (расшифровка подписи)
DW9: " | DY9: 29 | EB9: " | EE9: 12 | ET9: 20 | EW9: 22 | EZ9: г.
CR11: План финансово-хозяйственной деятельности на 20 | CS11: 23 | CV11: г.
AY12: (на 20 | BF12: 23 | BI12: г. и плановый период 20 | CE12: 24 | CH12: и 20 | CM12: 25 | CP12: годов 1) | ES12: Коды
BG14: от " | BK14: 29 | BN14: " | BQ14: 12 | CF14: 20 | CI14: 22 | CL14: г.2 | EQ14: Дата
A15: Орган, осуществляющий | EQ15: по Сводному реестру
A16: функции и полномочия учредителя | AB16: Администрация Александрово-Гайского муниципального района Саратовской области | EQ16: глава по БК
EQ17: по Сводному реестру
EQ18: ИНН | ES18: 6401003271
A19: Учреждение | K19: Муниципальное бюджетное дошкольное образовательное учреждение детский сад "Карусель" с. Александров-Гай | EQ19: КПП | ES19: 640101001
A20: Единица измерения: руб. | EQ20: по ОКЕИ | ES20: 383
A22: Раздел 1. Поступления и выплаты
A24: Наименование показателя | BX24: Код строки | CF24: Код по бюджетной классификации Российской Федерации 3 | CS24: Аналити-ческий код 4 | DF24: Сумма
DF25: на 20 | DL25: 23 | DO25: г. | DS25: на 20 | DY25: 24 | EB25: г. | EF25: на 20 | EL25: 25 | EO25: г. | ES25: за пределами планового периода
DF26: текущий финансовый год | DS26: первый год планового периода | EF26: второй год планового периода
A27: 1 | BX27: 2 | CF27: 3 | CS27: 4 | DF27: 5 | DS27: 6 | EF27: 7 | ES27: 8
A28: Остаток средств на начало текущего финансового года 5 | BX28: 0001 | CF28: х | CS28: х
A29: Остаток средств на конец текущего финансового года 5 | BX29: 0002 | CF29: х | CS29: х
A30: Доходы, всего: | BX30: 1000 | DF30: =DF34+DF44 -> 11272697 | DS30: =DS34+DS44 -> 10364482 | EF30: =EF34+EF44 -> 10364482
A31: в том числе: доходы от собственности, всего | BX31: 1100 | CF31: 120
A32: в том числе: | BX32: 1110
A34: доходы от оказания услуг, работ, компенсации затрат учреждений, всего | BX34: 1200 | CF34: 130 | CS34: 131 | DF34: =DF35+'Таблица 2.2'!H14 -> 11103997 | DS34: =DS35 -> 10364482 | EF34: =EF35 -> 10364482
A35: в том числе: субсидии на финансовое обеспечение выполнения государственного (муниципального) задания за счет средств бюджета публично-правового образования, создавшего учреждение | BX35: 1210 | CF35: 130 | CS35: 131 | DF35: ='Таблица 2.2'!H18 -> 10372472 | DS35: =DS56 -> 10364482 | EF35: =EF56 -> 10364482
A36: субсидии на финансовое обеспечение выполнения государственного задания за счет средств бюджета Федерального фонда обязательного медицинского страхования | BX36: 1220 | CF36: 130
A38: доходы от штрафов, пеней, иных сумм принудительного изъятия, всего | BX38: 1300 | CF38: 140
A39: в том числе: | BX39: 1310 | CF39: 140
A41: безвозмездные денежные поступления, всего | BX41: 1400 | CF41: 150
A42: в том числе:
A44: прочие доходы, всего | BX44: 1500 | CF44: 180 | CS44: 180 | DF44: ='Таблица 2.2'!H94 -> 168700 | DS44: 0 | EF44: 0
A45: в том числе: | BX45: 1510 | CF45: 180
A46: целевые субсидии
A47: субсидии на осуществление капитальных вложений | BX47: 1520 | CF47: 180
A49: доходы от операций с активами, всего | BX49: 1900
A50: в том числе:
A53: прочие поступления, всего 6 | BX53: 1980 | CF53: х
A54: из них: увеличение остатков денежных средств за счет возврата дебиторской задолженности прошлых лет | BX54: 1981 | CF54: 510 | ES54: х
A56: Расходы, всего | BX56: 2000 | CF56: х | DF56: =DF58+DF61+DF76+DF90+DF89+DF103 -> 11272697 | DS56: =DS58+DS61+DS76+DS90+DS89+DS103 -> 10364482 | EF56: =EF58+EF61+EF76+EF90+EF89+EF103 -> 10364482
A57: в том числе: на выплаты персоналу, всего | BX57: 2100 | CF57: х | DF57: =DF58+DF61 -> 9545897 | DS57: =DS58+DS61 -> 9535897 | EF57: =EF58+EF61 -> 9535897 | ES57: х
A58: в том числе: оплата труда | BX58: 2110 | CF58: 111 | CS58: 211 | DF58: ='Таблица 2.2'!H96+'Таблица 2.2'!H98+'Таблица 2.2'!H22+'Таблица 2.2'!H23+'Таблица 2.2'!H24+'Таблица 2.2'!H25+'Таблица 2.2'!H108 -> 7331717 | DS58: =7331717-10000 -> 7321717 | EF58: =7331717-10000 -> 7321717 | ES58: х
A59: прочие выплаты персоналу, в том числе компенсационного характера | BX59: 2120 | CF59: 112 | ES59: х
A60: иные выплаты, за исключением фонда оплаты труда учреждения, для выполнения отдельных полномочий | BX60: 2130 | CF60: 113 | ES60: х
A61: взносы по обязательному социальному страхованию на выплаты по оплате труда работников и иные выплаты работникам учреждений, всего | BX61: 2140 | CF61: 119 | CS61: 213 | DF61: ='Таблица 2.2'!H28+'Таблица 2.2'!H30+'Таблица 2.2'!H97+'Таблица 2.2'!H99+'Таблица 2.2'!H109+'Таблица 2.2'!H116 -> 2214180 | DS61: 2214180 | EF61: 2214180 | ES61: х
A62: в том числе: на выплаты по оплате труда | BX62: 2141 | CF62: 119 | ES62: х
A63: на иные выплаты работникам | BX63: 2142 | CF63: 119 | ES63: х
A64: денежное довольствие военнослужащих и сотрудников, имеющих специальные звания | BX64: 2150 | CF64: 131 | ES64: х
A65: иные выплаты военнослужащим и сотрудникам, имеющим специальные звания | BX65: 2160 | CF65: 134 | ES65: х
A66: страховые взносы на обязательное социальное страхование в части выплат персоналу, подлежащих обложению страховыми взносами | BX66: 2170 | CF66: 139 | ES66: х
A67: в том числе: на оплату труда стажеров | BX67: 2171 | CF67: 139 | ES67: х
A68: на иные выплаты гражданским лицам (денежное содержание) | BX68: 2172 | CF68: 139 | ES68: х
A69: социальные и иные выплаты населению, всего | BX69: 2200 | CF69: 300 | ES69: х
A70: в том числе: социальные выплаты гражданам, кроме публичных нормативных социальных выплат | BX70: 2210 | CF70: 320 | ES70: х
A71: из них: пособия, компенсации и иные социальные выплаты гражданам, кроме публичных нормативных обязательств | BX71: 2211 | CF71: 321 | ES71: х
A73: выплата стипендий, осуществление иных расходов на социальную поддержку обучающихся за счет средств стипендиального фонда | BX73: 2220 | CF73: 340 | ES73: х
A74: на премирование физических лиц за достижения в области культуры, искусства, образования, науки и техники, а также на предоставление грантов с целью поддержки проектов в области науки, культуры и искусства | BX74: 2230 | CF74: 350 | ES74: х
A75: социальное обеспечение детей-сирот и детей, оставшихся без попечения родителей | BX75: 2240 | CF75: 360 | ES75: х
A76: уплата налогов, сборов и иных платежей, всего | BX76: 2300 | CF76: 850 | DF76: =DF77+DF79+DF78+DF85 -> 212450 | DS76: =DS77+DS79 -> 212450 | EF76: =EF77+EF79 -> 212450 | ES76: х
A77: из них: налог на имущество организаций и земельный налог | BX77: 2310 | CF77: 851 | CS77: 291.294 | DF77: ='Таблица 2.2'!H56+'Таблица 2.2'!H63+'Таблица 2.2'!H61 -> 207450 | DS77: 207450 | EF77: 207450 | ES77: х
A78: иные налоги (включаемые в состав расходов) в бюджеты бюджетной системы Российской Федерации, а также государственная пошлина | BX78: 2320 | CF78: 852 | CS78: 291 | DF78: ='Таблица 2.2'!H58 -> 0 | DS78: ='Таблица 2.2'!U58 -> 0 | EF78: ='Таблица 2.2'!AH58 -> 0 | ES78: х
A79: уплата штрафов (в том числе административных), пеней, иных платежей | BX79: 2330 | CF79: 853 | CS79: 293, 297 | DF79: ='Таблица 2.2'!H59+'Таблица 2.2'!H125+'Таблица 2.2'!H60 -> 5000 | DS79: 5000 | EF79: 5000 | ES79: х
A80: безвозмездные перечисления организациям и физическим лицам, всего | BX80: 2400 | CF80: х | ES80: х
A81: из них: гранты, предоставляемые другим организациям и физическим лицам | BX81: 2410 | CF81: 810 | ES81: х
A82: взносы в международные организации | BX82: 2420 | CF82: 862 | ES82: х
A83: платежи в целях обеспечения реализации соглашений с правительствами иностранных государств и международными организациями | BX83: 2430 | CF83: 863 | ES83: х
A84: прочие выплаты (кроме выплат на закупку товаров, работ, услуг) | BX84: 2500 | CF84: х | ES84: х
A85: исполнение судебных актов Российской Федерации и мировых соглашений по возмещению вреда, причиненного в результате деятельности учреждения | BX85: 2520 | CF85: 831 | CS85: 297 | DF85: ='Таблица 2.2'!H62+'Таблица 2.2'!H55 -> 0 | ES85: х
A86: расходы на закупку товаров, работ, услуг, всего 7 | BX86: 2600 | CF86: х | DF86: =DF89+DF90+DF103 -> 1514350 | DS86: =DS89+DS90+DS103 -> 616135 | EF86: =EF89+EF90+EF103 -> 616135
A87: в том числе: закупку научно-исследовательских и опытно-конструкторских работ | BX87: 2610 | CF87: 241
A88: закупку товаров, работ, услуг в сфере информационно-коммуникационных технологий | BX88: 2620 | CF88: 242
A89: закупку товаров, работ, услуг в целях капитального ремонта государственного (муниципального) имущества | BX89: 2630 | CF89: 243 | CS89: 225 | DF89: ='Таблица 2.2'!H130+'Таблица 2.2'!H131 -> 0
A90: прочую закупку товаров, работ и услуг, всего | BX90: 2640 | CF90: 244 | DF90: =SUM(DF91:DR101) -> 1139350 | DS90: =SUM(DS91:EE101) -> 216135 | EF90: =SUM(EF91:ER101) -> 216135
A91: из них:
A92: услуги связи | CF92: 244 | CS92: 221 | DF92: ='Таблица 2.2'!H33+'Таблица 2.2'!H117 -> 10000 | DS92: 5000 | EF92: 5000
A93: коммунальные услуги | CF93: 244 | CS93: 223 | DF93: ='Таблица 2.2'!H36+'Таблица 2.2'!H120 -> 25000
A94: работы,услуги по содержанию имущества | CF94: 244 | CS94: 225 | DF94: ='Таблица 2.2'!H38+'Таблица 2.2'!H121+'Таблица 2.2'!H106+'Таблица 2.2'!H100 -> 5000 | DS94: 5000 | EF94: 5000
A95: прочие работы,услуги | CF95: 244 | CS95: 226 | DF95: ='Таблица 2.2'!H39+'Таблица 2.2'!H134+'Таблица 2.2'!H105+'Таблица 2.2'!H101 -> 5000 | DS95: 5000 | EF95: 5000
A96: увеличение стоимости материальных запасов | CF96: 244 | CS96: 341 | DF96: ='Таблица 2.2'!H45+'Таблица 2.2'!H48 -> 0
A97: увеличение стоимости материальных запасов | CF97: 244 | CS97: 342 | DF97: ='Таблица 2.2'!H44+'Таблица 2.2'!H47+'Таблица 2.2'!H82 -> 871190 | DS97: =25000+121675 -> 146675 | EF97: =25000+121675 -> 146675
A98: увеличение стоимости материальных запасов | CF98: 244 | CS98: 344 | DF98: ='Таблица 2.2'!H132+'Таблица 2.2'!H133 -> 0
A99: увеличение стоимости материальных запасов | CF99: 244 | CS99: 345 | DF99: ='Таблица 2.2'!H46+'Таблица 2.2'!H49 -> 6720 | DS99: 6720 | EF99: 6720
A100: увеличение стоимости прочих материальных запасов | CF100: 244 | CS100: 346 | DF100: ='Таблица 2.2'!H43+'Таблица 2.2'!H84+'Таблица 2.2'!H103+'Таблица 2.2'!H107+'Таблица 2.2'!H115 -> 0
A101: увеличение стоимости основных средств | CF101: 244 | CS101: 310 | DF101: ='Таблица 2.2'!H41+'Таблица 2.2'!H42+'Таблица 2.2'!H102+'Таблица 2.2'!H104 -> 216440 | DS101: 47740 | EF101: 47740
A103: прочую закупку товаров, работ и услуг, всего | BX103: 2641 | CF103: 247 | DF103: =DF105 -> 375000 | DS103: =DS105 -> 400000 | EF103: =EF105 -> 400000
A104: из них:
A105: коммунальные услуги | CF105: 247 | CS105: 223 | DF105: ='Таблица 2.2'!H35 -> 375000 | DS105: 400000 | EF105: 400000
A106: капитальные вложения в объекты государственной (муниципальной) собственности, всего | BX106: 2650 | CF106: 400
A107: в том числе: приобретение объектов недвижимого имущества государственными (муниципальными) учреждениями | BX107: 2651 | CF107: 406
A108: строительство (реконструкция) объектов недвижимого имущества государственными (муниципальными) учреждениями | BX108: 2652 | CF108: 407
A109: Выплаты, уменьшающие доход, всего 8 | BX109: 3000 | CF109: 100 | ES109: х
A110: в том числе: налог на прибыль 8 | BX110: 3010 | ES110: х
A111: налог на добавленную стоимость 8 | BX111: 3020 | ES111: х
A112: прочие налоги, уменьшающие доход 8 | BX112: 3030 | ES112: х
A113: Прочие выплаты, всего 9 | BX113: 4000 | CF113: х | ES113: х
A114: из них: возврат в бюджет средств субсидии | BX114: 4010 | CF114: 610 | ES114: х
A117: _____1_В случае утверждения закона (решения) о бюджете на текущий финансовый год и плановый период.
A118: _____2_Указывается дата подписания Плана, а в случае утверждения Плана уполномоченным лицом учреждения - дата утверждения Плана.
A119: _____3_В графе 3 отражаются:
A120: _____по строкам 1100 - 1900 - коды аналитической группы подвида доходов бюджетов классификации доходов бюджетов;
A121: _____по строкам 1980 - 1990 - коды аналитической группы вида источников финансирования дефицитов бюджетов классификации источников финансирования дефицитов бюджетов;
A122: _____по строкам 2000 - 2652 - коды видов расходов бюджетов классификации расходов бюджетов;
A123: _____по строкам 3000 - 3030 - коды аналитической группы подвида доходов бюджетов классификации доходов бюджетов, по которым планируется уплата налогов, уменьшающих доход (в том числе налог на прибыль, налог на добавленную стоимость, единый налог на вмененный доход для отдельных видов деятельности);
A124: _____по строкам 4000 - 4040 - коды аналитической группы вида источников финансирования дефицитов бюджетов классификации источников финансирования дефицитов бюджетов.
A125: _____4_В графе 4 указывается код классификации операций сектора государственного управления в соответствии с Порядком применения классификации операций сектора государственного управления, утвержденным приказом Министерства финансов Российской Федерации от 29 ноября 2017 г. № 209н (зарегистрирован в Министерстве юстиции Российской Федерации 12 февраля 2018 г., регистрационный номер 50003), и (или) коды иных аналитических показателей, в случае, если Порядком органа - учредителя предусмотрена указанная детализация.
A126: _____5_По строкам 0001 и 0002 указываются планируемые суммы остатков средств на начало и на конец планируемого года, если указанные показатели по решению органа, осуществляющего функции и полномочия учредителя, планируются на этапе формирования проекта Плана либо указываются фактические остатки средств при внесении изменений в утвержденный План после завершения отчетного финансового года.
A127: _____6_Показатели прочих поступлений включают в себя в том числе показатели увеличения денежных средств за счет возврата дебиторской задолженности прошлых лет, включая возврат предоставленных займов (микрозаймов), а также за счет возврата средств, размещенных на банковских депозитах. При формировании Плана (проекта Плана) обособленному(ым) подразделению(ям) показатель прочих поступлений включает показатель поступлений в рамках расчетов между головным учреждением и обособленным подразделением.
A128: _____7_Показатели выплат по расходам на закупки товаров, работ, услуг, отраженные в строке 2600 Раздела 1 "Поступления и выплаты" Плана, подлежат детализации в Разделе 2 "Сведения по выплатам на закупку товаров, работ, услуг" Плана.
A129: _____8_Показатель отражается со знаком "минус".
A130: _____9_Показатели прочих выплат включают в себя в том числе показатели уменьшения денежных средств за счет возврата средств субсидий, предоставленных до начала текущего финансового года, предоставления займов (микрозаймов), размещения автономными учреждениями денежных средств на банковских депозитах. При формировании Плана (проекта Плана) обособленному(ым) подразделению(ям) показатель прочих выплат включает показатель поступлений в рамках расчетов между головным учреждением и обособленным подразделением.

Sheet стр.5_6
B1: Раздел 2. Сведения по выплатам на закупки товаров, работ, услуг 10
A3: № п/п | I3: Наименование показателя | CN3: Коды строк | CV3: Год начала закупки | DF3: Сумма
DF4: на 20 | DL4: 23 | DO4: г. | DS4: на 20 | DY4: 24 | EB4: г. | EF4: на 20 | EL4: 25 | EO4: г. | ES4: за пределами планового периода
DF5: (текущий финансовый год) | DS5: (первый год планового периода) | EF5: (второй год планового периода)
A6: 1 | I6: 2 | CN6: 3 | CV6: 4 | DF6: 5 | DS6: 6 | EF6: 7 | ES6: 8
A7: 1 | I7: Выплаты на закупку товаров, работ, услуг, всего 11 | CN7: 26000 | CV7: х | DF7: =стр.1_4!DF86 -> 1514350 | DS7: =стр.1_4!DS86 -> 616135 | EF7: =стр.1_4!EF86 -> 616135
A8: 1.1 | I8: в том числе: по контрактам (договорам), заключенным до начала текущего финансового года без применения норм Федерального закона от 5 апреля 2013 г. № 44-ФЗ "О контрактной системе в сфере закупок товаров, работ, услуг для обеспечения государственных и муниципальных нужд" (Собрание законодательства Российской Федерации, 2013, № 14, ст. 1652; 2018, № 32, ст. 5104) (далее - Федеральный закон № 44-ФЗ) и Федерального закона от 18 июля 2011 г. № 223-ФЗ "О закупках товаров, работ, услуг отдельными видами юридических лиц" (Собрание законодательства Российской Федерации, 2011, № 30, ст. 4571; 2018, № 32, ст. 5135) (далее - Федеральный закон № 223-ФЗ)12 | CN8: 26100 | CV8: х
A9: 1.2 | I9: по контрактам (договорам), планируемым к заключению в соответствующем финансовом году без применения норм Федерального закона № 44-ФЗ и Федерального закона № 223-ФЗ 12 | CN9: 26200 | CV9: х
A10: 1.3 | I10: по контрактам (договорам), заключенным до начала текущего финансового года с учетом требований Федерального закона № 44-ФЗ и Федерального закона № 223-ФЗ 13 | CN10: 26300 | CV10: х
A11: 1.4 | I11: по контрактам (договорам), планируемым к заключению в соответствующем финансовом году с учетом требований Федерального закона № 44-ФЗ и Федерального закона № 223-ФЗ 13 | CN11: 26400 | CV11: х | DF11: =DF12+DF15+DF22 -> 1514350 | DS11: =DS12+DS15+DS22 -> 616135 | EF11: =EF12+EF15+EF22 -> 616135
A12: 1.4.1 | I12: в том числе: за счет субсидий, предоставляемых на финансовое обеспечение выполнения государственного (муниципального) задания | CN12: 26410 | CV12: х | DF12: ='Таблица 2.2'!H31 -> 614125 | DS12: =стр.1_4!DS90+стр.1_4!DS103 -> 616135 | EF12: =стр.1_4!EF90+стр.1_4!EF103 -> 616135
A13: 1.4.1.1 | I13: в том числе: в соответствии с Федеральным законом № 44-ФЗ | CN13: 26411 | CV13: х | DF13: =DF12 -> 614125 | DS13: =DS12 -> 616135 | EF13: =EF12 -> 616135
A14: 1.4.1.2 | I14: в соответствии с Федеральным законом № 223-ФЗ 14 | CN14: 26412 | CV14: х
A15: 1.4.2 | I15: за счет субсидий, предоставляемых в соответствии с абзацем вторым пункта 1 статьи 78.1 Бюджетного кодекса Российской Федерации | CN15: 26420 | CV15: х | DF15: =DF16 -> 168700
A16: 1.4.2.1 | I16: в том числе: в соответствии с Федеральным законом № 44-ФЗ | CN16: 26421 | CV16: х | DF16: ='Таблица 2.2'!H117+'Таблица 2.2'!H120+'Таблица 2.2'!H130+'Таблица 2.2'!H131+'Таблица 2.2'!H121+'Таблица 2.2'!H123+'Таблица 2.2'!H134+'Таблица 2.2'!H132+'Таблица 2.2'!H133+'Таблица 2.2'!H102+'Таблица 2.2'!H104+'Таблица 2.2'!H105+'Таблица 2.2'!H103+'Таблица 2.2'!H106+'Таблица 2.2'!H107+'Таблица 2.2'!H101+'Таблица 2.2'!H115+'Таблица 2.2'!H100 -> 168700
A17: 1.4.2.2 | I17: в соответствии с Федеральным законом № 223-ФЗ 14 | CN17: 26422 | CV17: х
A18: 1.4.3 | I18: за счет субсидий, предоставляемых на осуществление капитальных вложений 15 | CN18: 26430 | CV18: х
A19: 1.4.4 | I19: за счет средств обязательного медицинского страхования | CN19: 26440 | CV19: х
A20: 1.4.4.1 | I20: в том числе: в соответствии с Федеральным законом № 44-ФЗ | CN20: 26441 | CV20: х | FQ20: =DF13+DF22+DF15 -> 1514350
A21: 1.4.4.2 | I21: в соответствии с Федеральным законом № 223-ФЗ 14 | CN21: 26442 | CV21: х
A22: 1.4.5 | I22: за счет прочих источников финансового обеспечения | CN22: 26450 | CV22: х | DF22: =DF23 -> 731525
A23: 1.4.5.1 | I23: в том числе: в соответствии с Федеральным законом № 44-ФЗ | CN23: 26451 | CV23: х | DF23: ='Таблица 2.2'!H71 -> 731525
A24: 1.4.5.2 | I24: в соответствии с Федеральным законом № 223-ФЗ | CN24: 26452 | CV24: х
A25: 2 | I25: Итого по контрактам, планируемым к заключению в соответствующем финансовом году в соответствии с Федеральным законом № 44-ФЗ, по соответствующему году закупки 16 | CN25: 26500 | CV25: х
I26: в том числе по году начала закупки: | CN26: 26510
CV27: 2023 | DF27: =DF7 -> 1514350
CV28: 2024 | DS28: =DS7 -> 616135
CV29: 2025 | EF29: =EF7 -> 616135
A30: 3 | I30: Итого по договорам, планируемым к заключению в соответствующем финансовом году в соответствии с Федеральным законом № 223-ФЗ, по соответствующему году закупки | CN30: 26600 | CV30: х
I31: в том числе по году начала закупки: | CN31: 26610
I34: Руководитель учреждения
I35: (уполномоченное лицо учреждения) | AQ35: Заведующий | BY35: А. А. Елизарова
AQ36: (должность) | BK36: (подпись) | BY36: (расшифровка подписи)
I38: Исполнитель | AM38: главный экономист | BG38: И.А. Корнева | CA38: (84578)2-12-84
AM39: (должность) | BG39: (фамилия, инициалы) | CA39: (телефон)
I41: " | K41: 29 | N41: " | Q41: 12 | AF41: 20 | AI41: 22 | AL41: г.
A44: СОГЛАСОВАНО
A46: (наименование должности уполномоченного лица органа-учредителя)
A49: (подпись) | AH49: (расшифровка подписи)
A51: " | F51: " | X51: 20 | AD51: г.
A54: _____10_В Разделе 2 "Сведения по выплатам на закупку товаров, работ, услуг" Плана детализируются показатели выплат по расходам на закупку товаров, работ, услуг, отраженные в строке 2600 Раздела 1 "Поступления и выплаты" Плана.
A55: _____11_Плановые показатели выплат на закупку товаров, работ, услуг по строке 26000 Раздела 2 "Сведения по выплатам на закупку товаров, работ, услуг" Плана распределяются на выплаты по контрактам (договорам), заключенным (планируемым к заключению) в соответствии с гражданским законодательством Российской Федерации (строки 26100 и 26200), а также по контрактам (договорам), заключаемым в соответствии с требованиями законодательства Российской Федерации и иных нормативных правовых актов о контрактной системе в сфере закупок товаров, работ, услуг для государственных и муниципальных нужд, с детализацией указанных выплат по контрактам (договорам), заключенным до начала текущего финансового года (строка 26300) и планируемым к заключению в соответствующем финансовом году (строка 26400) и должны соответствовать показателям соответствующих граф по строке 2600 Раздела 1 "Поступления и выплаты" Плана.
A56: _____12_Указывается сумма договоров (контрактов) о закупках товаров, работ, услуг, заключенных без учета требований Федерального закона № 44-ФЗ и Федерального закона № 223-ФЗ, в случаях, предусмотренных указанными федеральными законами.
A57: _____13_Указывается сумма закупок товаров, работ, услуг, осуществляемых в соответствии с Федеральным законом № 44-ФЗ и Федеральным законом № 223-ФЗ.
A58: _____14_Государственным (муниципальным) бюджетным учреждением показатель не формируется.
A59: _____15_Указывается сумма закупок товаров, работ, услуг, осуществляемых в соответствии с Федеральным законом № 44-ФЗ.
A60: _____16_Плановые показатели выплат на закупку товаров, работ, услуг по строке 26500 государственного (муниципального) бюджетного учреждения должен быть не менее суммы показателей строк 26410, 26420, 26430, 26440 по соответствующей графе, государственного (муниципального) автономного учреждения - не менее показателя строки 26430 по соответствующей графе.
